bitfinex/quotes_SOLUSD_20240822
["timestamp","ask_amount","ask_price","bid_price","bid_amount"]
[1724334755269,6.9803,143.26,143.18,65.25098]
[1724334755468,61.67,143.28,143.18,65.25098]
[1724334755792,6.9808,143.25,143.18,65.25098]
[1724334755962,6.9803,143.26,143.18,65.25098]
[1724334756166,6.9808,143.25,143.18,65.25098]
[1724334756370,61.67,143.26,143.18,65.25098]
[1724334756878,6.9812,143.25,143.18,65.25098]
[1724334757082,61.67,143.26,143.18,65.25098]
[1724334757083,68.6505,143.26,143.18,65.25098]
[1724334757258,6.9805,143.26,143.19,1.39613527]
[1724334757465,6.9799,143.27,143.2,0.25098]
[1724334757689,6.9807,143.26,143.2,0.25098]
[1724334757861,6.9803,143.26,143.2,0.25098]
[1724334758183,6.9803,143.26,143.21,0.25098]
[1724334758373,6.9803,143.26,143.19,0.25098]
[1724334758986,68.92479782,143.29,143.18,20.0]
[1724334759174,61.67,143.25,143.16,20.0]
[1724334759893,61.67,143.25,143.15,22.6222]
[1724334760188,6.9818,143.23,143.15,22.6222]
[1724334760665,6.9813,143.24,143.15,22.6222]
[1724334760867,68.6508,143.25,143.15,22.6222]
[1724334761172,68.6508,143.25,143.16,20.0]
[1724334761567,68.6508,143.25,143.17,45.12549]
[1724334761963,6.9813,143.24,143.18,0.12549]
[1724334762375,6.9818,143.23,143.18,0.12549]
[1724334763164,56.2213,143.24,143.18,0.12549]
[1724334763597,6.9808,143.25,143.18,0.12549]
[1724334764198,56.2203,143.26,143.18,0.12549]
[1724334764366,7.25479782,143.29,143.18,1.52163997]
[1724334764367,56.2197,143.28,143.18,1.52163997]
[1724334764565,56.2197,143.28,143.19,0.12549]
[1724334764566,6.98,143.27,143.19,0.12549]
[1724334764872,6.98,143.27,143.19,45.12549]
[1724334765076,6.98,143.27,143.2,0.12549]
[1724334765270,6.9803,143.26,143.2,0.12549]
[1724334765666,6.9799,143.27,143.2,1.52164217]
[1724334765865,6.9799,143.27,143.21,0.12549]
[1724334766071,6.9799,143.27,143.21,1.52158283]
[1724334766304,6.9799,143.27,143.22,0.12549]
[1724334766693,7.25479782,143.29,143.22,0.12549]
[1724334766869,7.25479782,143.29,143.22,45.12549]
[1724334769498,56.2203,143.26,143.22,45.0]
[1724334769795,49.24,143.26,143.22,45.0]
[1724334770682,56.2193,143.28,143.22,45.0]
[1724334771294,6.98,143.27,143.22,45.0]
[1724334772093,6.9804,143.26,143.22,45.0]
[1724334772279,56.2204,143.26,143.22,45.0]
[1724334772486,6.9808,143.25,143.22,45.0]
[1724334772679,56.2213,143.24,143.22,45.0]
[1724334773196,56.2213,143.24,143.17,6.1102]
[1724334774295,56.2223,143.22,143.17,6.1102]
[1724334774677,49.24,143.2,143.15,16.0887]
[1724334775772,49.24,143.22,143.15,16.0887]
[1724334776171,56.2226,143.22,143.15,16.0887]
[1724334776375,49.24,143.2,143.13,6.0122]
[1724334776698,6.9829,143.21,143.13,6.0122]
[1724334776897,64.3108,143.24,143.13,6.0122]
[1724334777105,49.24,143.22,143.14,45.25098]
[1724334777398,6.9822,143.23,143.14,45.25098]
[1724334777597,56.2214,143.24,143.14,45.25098]
[1724334777895,56.2214,143.24,143.15,20.0]
[1724334778100,49.24,143.26,143.17,15.0584]
[1724334778297,56.2203,143.26,143.18,45.25098]
[1724334779566,6.9808,143.25,143.18,45.25098]
[1724334780788,56.50128773,143.26,143.19,6.0804]
[1724334780981,6.9798,143.27,143.2,45.25098]
[1724334781188,71.383,143.28,143.2,45.25098]
[1724334781369,49.24,143.28,143.2,45.25098]
[1724334781569,6.9789,143.29,143.2,45.25098]
[1724334782799,6.9789,143.29,143.21,1.39586866]
[1724334783001,7.26096128,143.3,143.22,0.25098]
[1724334783222,49.24,143.28,143.23,0.12549]
[1724334783391,49.24,143.28,143.19,6.0804]
[1724334783392,49.24,143.26,143.19,6.0804]
[1724334783699,49.24,143.26,143.2,20.0]
[1724334783905,56.2204,143.26,143.2,20.0]
[1724334784699,7.26096128,143.3,143.19,6.0804]
[1724334785011,49.24,143.27,143.19,6.0804]
[1724334785303,49.24,143.27,143.2,45.25098]
[1724334785518,6.9803,143.26,143.2,45.25098]
[1724334785682,56.2199,143.27,143.2,45.25098]
[1724334786014,49.24,143.27,143.2,45.25098]
[1724334786310,56.2189,143.29,143.21,1.39611368]
[1724334786624,56.2189,143.29,143.22,1.64699033]
[1724334786806,56.2189,143.29,143.22,0.25098]
[1724334786985,14.23936128,143.3,143.23,16.0305]
[1724334787323,14.23936128,143.3,143.24,46.64678598]
[1724334787614,7.26096128,143.3,143.25,6.3996]
[1724334787809,7.26096128,143.3,143.26,45.12549]
[1724334787991,7.26096128,143.3,143.27,0.12549]
[1724334788797,49.24,143.34,143.27,1.52113924]
[1724334789309,0.859104,143.35,143.28,0.12549]
[1724334789482,6.9764,143.34,143.28,0.12549]
[1724334789802,7.835004,143.35,143.27,0.25098]
[1724334790005,7.835004,143.35,143.27,21.64627063]
[1724334790214,7.835004,143.35,143.28,45.0]
[1724334790385,7.835004,143.35,143.29,1.64625839]
[1724334790585,0.859104,143.35,143.29,0.25098]
[1724334791194,7.835504,143.35,143.29,0.25098]
[1724334792904,68.4278,143.32,143.27,20.0]
[1724334793102,68.4278,143.32,143.26,20.0]
[1724334793335,68.4274,143.32,143.25,6.3996]
[1724334793698,6.9774,143.32,143.25,6.3996]
[1724334794130,6.9769,143.33,143.25,6.3996]
[1724334794311,6.9774,143.32,143.25,6.3996]
[1724334794631,6.9765,143.34,143.26,0.12549]
[1724334794802,7.835004,143.35,143.26,45.12549]
[1724334795128,0.859104,143.35,143.27,36.65754259]
[1724334795319,0.859104,143.35,143.28,45.25098]
[1724334795520,0.859104,143.35,143.29,1.39521402]
[1724334795705,0.859104,143.35,143.3,1.64619468]
[1724334795901,0.859104,143.35,143.31,6.6332]
[1724334796121,0.859104,143.35,143.32,46.64605902]
[1724334796417,0.859104,143.35,143.33,15.1216]
[1724334796620,0.859104,143.35,143.34,45.25098]
[1724334797215,0.859104,143.35,143.34,46.64593001]
[1724334797417,0.859104,143.35,143.34,45.25098]
[1724334800539,0.859104,143.35,143.34,0.12549]
[1724334800705,0.859104,143.35,143.31,6.6332]
[1724334801118,0.859104,143.35,143.29,16.138]
[1724334801399,62.309104,143.35,143.28,6.3052]
[1724334801634,69.285404,143.35,143.29,1.39542761]
[1724334802031,0.859104,143.35,143.28,6.3052]
[1724334802234,7.835204,143.35,143.28,6.3052]
[1724334802532,69.285204,143.35,143.28,6.3052]
[1724334802830,6.9764,143.34,143.28,6.3052]
[1724334803031,62.309104,143.35,143.28,6.3052]
[1724334803227,6.9764,143.34,143.28,6.3052]
[1724334803528,6.9769,143.33,143.28,6.3052]
[1724334803729,61.45,143.33,143.25,15.3009]
[1724334804033,61.45,143.33,143.24,6.0654]
[1724334804034,68.4283,143.31,143.24,6.0654]
[1724334804209,6.9784,143.3,143.24,6.0654]
[1724334804403,61.45,143.31,143.25,1.39587431]
[1724334804636,6.9778,143.32,143.25,1.39587431]
[1724334804839,68.4269,143.33,143.25,1.39587431]
[1724334805127,6.9775,143.32,143.24,6.0654]
[1724334805335,6.9779,143.31,143.25,1.39565073]
[1724334805843,6.9779,143.31,143.24,6.0654]
[1724334806007,6.9774,143.32,143.24,6.0654]
[1724334806538,6.9779,143.31,143.25,45.0]
[1724334806832,6.9784,143.3,143.25,45.0]
[1724334807014,6.9788,143.29,143.22,16.1982]
[1724334807217,6.9788,143.29,143.23,20.0]
[1724334807440,6.9788,143.29,143.24,1.3959756]
[1724334807732,6.9783,143.3,143.24,1.3959756]
[1724334807937,7.25892478,143.33,143.23,20.0]
[1724334808136,62.309104,143.35,143.23,81.45]
[1724334808320,6.9764,143.34,143.23,81.45]
[1724334808639,6.9764,143.34,143.24,45.25098]
[1724334808825,6.9764,143.34,143.25,20.0]
[1724334809012,6.9769,143.33,143.26,45.25098]
[1724334812033,6.9775,143.32,143.26,45.25098]
[1724334812536,6.977,143.33,143.26,45.25098]
[1724334814438,6.9764,143.34,143.26,45.25098]
[1724334814621,62.309104,143.35,143.26,45.25098]
[1724334814622,0.859104,143.35,143.28,6.6198]
[1724334814937,0.859104,143.35,143.29,45.25098]
[1724334816851,0.859104,143.35,143.29,61.67358]
[1724334820420,7.835104,143.35,143.29,61.67358]
[1724334821138,6.9765,143.34,143.29,0.12549]
[1724334821344,6.9765,143.34,143.28,6.6198]
[1724334822242,69.285104,143.35,143.29,1.39564644]
[1724334822445,7.835104,143.35,143.28,6.6198]
[1724334822633,7.835104,143.35,143.29,45.25098]
[1724334823726,0.859104,143.35,143.29,45.25098]
[1724334825148,0.859104,143.35,143.31,16.289]
[1724334825321,0.859104,143.35,143.32,0.25098]
[1724334825665,0.859104,143.35,143.33,55.5344]
[1724334825963,0.859104,143.35,143.34,46.64575412]
[1724334827231,0.859104,143.35,143.34,45.25098]
[1724334827445,0.859104,143.35,143.34,45.0]
[1724334828235,0.859104,143.35,143.34,45.25098]
[1724334829231,0.859104,143.35,143.34,66.64575793]
[1724334829743,0.859104,143.35,143.34,65.25098]
[1724334831757,0.859104,143.35,143.34,66.64569545]
[1724334832162,0.859104,143.35,143.34,65.25098]
[1724334832374,6.9719,143.44,143.34,76.98845144]
[1724334832530,6.9719,143.44,143.35,20.25098]
[1724334832729,6.9719,143.44,143.36,45.0]
[1724334832939,23.4273,143.47,143.37,1.64550425]
[1724334833253,6.9718,143.44,143.37,0.25098]
[1724334833959,6.972,143.43,143.37,0.25098]
[1724334834176,61.4,143.45,143.37,0.25098]
[1724334835044,16.4568,143.47,143.37,0.12549]
[1724334835247,6.9711,143.45,143.38,0.12549]
[1724334835555,6.9715,143.44,143.37,0.25098]
[1724334836132,68.3708,143.46,143.37,0.25098]
[1724334836339,16.4568,143.47,143.37,1.6454284]
[1724334836559,6.9707,143.46,143.37,1.6454284]
[1724334836744,6.971,143.45,143.37,1.6454284]
[1724334837059,16.4568,143.47,143.37,1.64537216]
[1724334837266,0.859104,143.49,143.38,88.91955539]
[1724334837572,0.859104,143.49,143.42,61.4]
[1724334837743,0.859104,143.49,143.43,65.25098]
[1724334838565,61.4,143.48,143.43,45.0]
[1724334838973,6.9701,143.47,143.43,45.0]
[1724334839257,0.859104,143.49,143.44,20.0]
[1724334839476,0.859104,143.49,143.45,45.25098]
[1724334840263,0.859104,143.49,143.45,45.0]
[1724334840643,6.9707,143.46,143.39,16.1566]
[1724334840850,61.4,143.47,143.39,16.1566]
[1724334841152,68.3701,143.47,143.39,16.1566]
[1724334841364,23.0691,143.48,143.39,16.1566]
[1724334841960,6.9696,143.48,143.4,1.39418182]
[1724334842161,6.9703,143.47,143.41,0.25098]
[1724334842341,6.9706,143.46,143.4,20.0]
[1724334842543,0.859104,143.49,143.39,16.1566]
[1724334842765,20.859104,143.49,143.39,16.1566]
[1724334842960,20.859104,143.49,143.38,6.3608]
[1724334843163,6.9715,143.44,143.38,6.3608]
[1724334843336,6.9715,143.44,143.36,16.2832]
[1724334843337,6.972,143.43,143.36,16.2832]
[1724334843542,61.4,143.44,143.36,16.2832]
[1724334843742,6.9725,143.43,143.36,16.2832]
[1724334844570,6.9727,143.42,143.36,16.2832]
[1724334844977,6.9731,143.41,143.36,1.39481407]
[1724334845144,6.9725,143.42,143.36,1.39481407]
[1724334845772,6.973,143.42,143.36,1.39481407]
[1724334845978,61.4,143.44,143.36,1.39481407]
[1724334846261,61.4,143.44,143.36,46.39481407]
[1724334846775,84.1635,143.46,143.36,46.39481407]
[1724334846975,77.8351,143.46,143.37,0.25098]
[1724334847184,6.971,143.45,143.37,0.25098]
[1724334847350,6.9701,143.47,143.38,15.423]
[1724334847676,6.993304,143.49,143.39,45.25098]
[1724334847855,6.9706,143.46,143.39,45.25098]
[1724334848044,6.9702,143.47,143.39,45.25098]
[1724334848670,6.9706,143.46,143.39,45.25098]
[1724334849762,6.9706,143.46,143.4,1.39438536]
[1724334849950,6.9706,143.46,143.41,0.25098]
[1724334850153,6.9706,143.46,143.39,45.25098]
[1724334850880,6.9711,143.45,143.39,45.25098]
[1724334851083,6.9711,143.45,143.39,45.12549]
[1724334851268,61.4,143.48,143.39,45.12549]
[1724334851475,61.4,143.48,143.4,0.12549]
[1724334851956,6.9711,143.45,143.39,45.12549]
[1724334852758,6.9715,143.44,143.39,45.12549]
[1724334852994,6.9715,143.44,143.38,15.423]
[1724334853155,56.0515,143.44,143.35,6.5994]
[1724334853356,56.0515,143.44,143.36,20.0]
[1724334853572,56.0515,143.44,143.35,6.5994]
[1724334854358,56.0515,143.44,143.36,45.25098]
[1724334854957,17.424,143.48,143.36,45.25098]
[1724334854958,6.971,143.45,143.36,45.25098]
[1724334855170,49.08,143.46,143.37,1.39449528]
[1724334855371,6.971,143.45,143.38,0.25098]
[1724334855562,49.08,143.44,143.38,0.25098]
[1724334855762,49.08,143.44,143.38,0.12549]
[1724334855985,49.08,143.44,143.37,0.25098]
[1724334856379,56.0526,143.42,143.35,6.5994]
[1724334856708,6.973,143.41,143.35,6.5994]
[1724334856978,56.0526,143.42,143.35,6.5994]
[1724334857375,6.9731,143.41,143.35,6.5994]
[1724334858261,6.9721,143.43,143.35,6.5994]
[1724334858682,6.9721,143.43,143.36,45.25098]
[1724334859067,6.9714,143.45,143.37,1.39465501]
[1724334859378,6.9714,143.45,143.36,45.25098]
[1724334859379,6.9714,143.45,143.38,0.25098]
[1724334859579,6.9714,143.45,143.36,45.25098]
[1724334859966,6.9721,143.43,143.37,1.39455573]
[1724334860168,6.9721,143.43,143.38,0.25098]
[1724334860580,6.9721,143.43,143.38,0.12549]
[1724334860779,6.9721,143.43,143.37,0.25098]
[1724334861083,6.9716,143.44,143.37,0.25098]
[1724334861778,49.08,143.46,143.37,1.64552882]
[1724334861978,6.9704,143.47,143.37,49.33098]
[1724334862187,6.9707,143.46,143.38,65.0]
[1724334862370,64.1115,143.48,143.39,0.25098]
[1724334862676,6.9707,143.46,143.39,0.25098]
[1724334863277,56.0507,143.46,143.39,0.25098]
[1724334863693,6.971,143.45,143.39,0.12549]
[1724334864486,56.0506,143.46,143.39,0.12549]
[1724334864704,6.9712,143.45,143.39,0.25098]
[1724334865290,6.9715,143.44,143.38,20.0]
[1724334865491,56.0515,143.44,143.36,20.0]
[1724334865689,49.08,143.42,143.36,20.0]
[1724334865986,56.0517,143.44,143.37,1.39478249]
[1724334866391,49.08,143.44,143.36,20.0]
[1724334866870,56.0516,143.44,143.36,20.0]
[1724334867070,56.0516,143.44,143.37,45.25098]
[1724334869484,6.972,143.43,143.37,45.25098]
[1724334869682,6.972,143.43,143.37,45.0]
[1724334870102,49.08,143.42,143.35,6.5994]
[1724334870283,56.0535,143.4,143.35,6.5994]
[1724334870482,49.08,143.38,143.31,6.2042]
[1724334870692,49.08,143.38,143.31,11.39338635]
[1724334870891,56.0545,143.38,143.31,11.39338635]
[1724334871207,6.9751,143.37,143.31,6.2042]
[1724334871504,49.08,143.36,143.31,6.2042]
[1724334871803,56.0554,143.36,143.31,6.2042]
[1724334872895,56.0554,143.36,143.3,15.4115]
[1724334873296,56.0554,143.36,143.28,5.19039041]
[1724334873492,56.0554,143.36,143.29,20.0]
[1724334874004,49.08,143.36,143.29,20.0]
[1724334874217,49.08,143.38,143.29,25.19039041]
[1724334874515,49.08,143.4,143.3,5.19039041]
[1724334874695,56.0535,143.4,143.3,5.19039041]
[1724334875008,56.0535,143.4,143.31,6.83654866]
[1724334875185,56.0535,143.4,143.32,45.0]
[1724334875380,56.0535,143.4,143.31,46.64615825]
[1724334875578,56.0535,143.4,143.31,1.64615825]
[1724334876203,56.0535,143.4,143.31,0.25098]
[1724334876384,56.0535,143.4,143.31,1.64615669]
[1724334876689,56.0535,143.4,143.31,0.25098]
[1724334877099,56.0535,143.4,143.31,1.64615694]
[1724334877484,56.0535,143.4,143.31,0.25098]
[1724334877823,49.08,143.4,143.31,1.6461568]
[1724334877985,64.2852,143.42,143.32,15.6704]
[1724334878310,71.2581,143.42,143.33,45.25098]
[1724334878686,71.2581,143.42,143.33,51.44368]
[1724334879281,49.08,143.4,143.33,52.83872035]
[1724334879510,49.08,143.4,143.33,51.44368]
[1724334880315,56.0539,143.4,143.33,51.44368]
[1724334881011,49.08,143.38,143.33,51.1927]
[1724334881216,49.08,143.38,143.33,6.1927]
[1724334882389,49.08,143.38,143.34,45.0]
[1724334882913,56.0535,143.4,143.34,45.0]
[1724334884831,49.08,143.4,143.34,45.0]
[1724334885731,49.08,143.38,143.34,45.0]
[1724334886020,49.08,143.38,143.3,16.1107]
[1724334886225,49.08,143.38,143.31,20.0]
[1724334886605,49.08,143.38,143.3,16.1107]
[1724334887430,49.08,143.4,143.3,16.1107]
[1724334887609,49.08,143.4,143.31,45.25098]
[1724334887927,49.08,143.38,143.31,45.25098]
[1724334891227,49.08,143.38,143.32,1.39528646]
[1724334891830,49.08,143.38,143.31,45.25098]
[1724334892538,56.0554,143.36,143.3,16.1107]
[1724334893115,56.0554,143.36,143.29,6.2201]
[1724334893315,49.08,143.34,143.29,6.2201]
[1724334893736,56.0555,143.36,143.29,6.2201]
[1724334894609,56.0555,143.36,143.3,45.0]
[1724334895442,49.08,143.36,143.3,45.0]
[1724334895941,49.08,143.38,143.31,0.12549]
[1724334896229,49.08,143.38,143.31,0.25098]
[1724334896629,56.0544,143.38,143.3,46.39529834]
[1724334896806,6.975,143.37,143.3,45.0]
[1724334897312,6.975,143.37,143.3,46.39547643]
[1724334898213,56.0544,143.38,143.3,46.39547643]
[1724334898423,49.08,143.38,143.3,46.39547643]
[1724334898608,49.08,143.38,143.31,0.25098]
[1724334898932,49.08,143.38,143.31,1.64627578]
[1724334899131,49.08,143.38,143.31,0.25098]
[1724334900906,49.08,143.4,143.31,0.25098]
[1724334901255,49.08,143.4,143.31,1.64610052]
[1724334901532,49.08,143.44,143.33,6.398]
[1724334901756,49.08,143.44,143.34,66.64578021]
[1724334901943,71.4241,143.46,143.35,1.39469391]
[1724334902234,71.4241,143.46,143.36,1.6455944]
[1724334902438,6.971,143.45,143.34,114.33098]
[1724334902738,64.4535,143.46,143.34,114.33098]
[1724334902739,56.0516,143.44,143.34,65.25098]
[1724334903232,49.08,143.42,143.34,65.25098]
[1724334904131,49.08,143.42,143.34,45.0]
[1724334904440,49.08,143.42,143.34,46.39508659]
[1724334904648,49.08,143.42,143.34,45.0]
[1724334904828,49.08,143.44,143.35,0.25098]
[1724334905345,49.08,143.42,143.35,0.25098]
[1724334905739,49.08,143.4,143.33,6.398]
[1724334905936,49.08,143.4,143.34,20.0]
[1724334906449,49.08,143.42,143.34,20.0]
[1724334907238,49.08,143.44,143.35,45.25098]
[1724334907950,71.4241,143.46,143.36,1.39466073]
[1724334908250,71.4241,143.46,143.37,0.25098]
[1724334908430,71.4241,143.46,143.37,46.6455576]
[1724334908750,49.08,143.46,143.39,6.6069]
[1724334908958,49.08,143.46,143.4,46.39450097]
[1724334909165,56.0496,143.48,143.4,46.39450097]
[1724334909537,49.08,143.48,143.4,46.39450097]
[1724334910047,49.08,143.48,143.41,0.12549]
[1724334910250,49.08,143.48,143.41,0.25098]
[1724334910444,0.859104,143.49,143.41,1.64527587]
[1724334910649,0.859104,143.49,143.42,15.3359]
[1724334910852,0.859104,143.49,143.43,46.64491598]
[1724334911227,0.859104,143.49,143.44,6.0884]
[1724334911446,0.859104,143.49,143.45,46.64491542]
[1724334911724,0.859104,143.49,143.46,1.39383498]
[1724334912543,49.939104,143.49,143.45,45.0]
[1724334912743,49.08,143.47,143.42,15.3359]
[1724334912940,49.08,143.45,143.4,6.3255]
[1724334913144,49.08,143.48,143.4,6.3255]
[1724334913752,0.859104,143.49,143.41,20.0]
[1724334914363,49.08,143.48,143.41,20.0]
[1724334914659,49.08,143.48,143.42,45.25098]
[1724334915239,46.0496,143.48,143.42,45.0]
[1724334915538,49.08,143.46,143.42,45.0]
[1724334915753,49.08,143.46,143.41,45.0]
[1724334916365,49.08,143.46,143.4,6.3255]
[1724334917359,49.08,143.48,143.4,6.3255]
[1724334917564,56.05,143.48,143.4,6.3255]
[1724334917760,56.05,143.48,143.41,45.0]
[1724334918768,49.08,143.48,143.42,0.12549]
[1724334920078,56.0496,143.48,143.42,0.12549]
[1724334920368,49.08,143.48,143.42,0.12549]
[1724334920736,0.859104,143.49,143.43,15.798]
[1724334920940,0.859104,143.49,143.44,45.25098]
[1724334921447,7.828204,143.49,143.44,45.0]
[1724334921649,0.859104,143.49,143.44,45.0]
[1724334921969,49.08,143.48,143.44,45.0]
[1724334922943,0.859104,143.49,143.44,45.0]
[1724334924469,7.828304,143.49,143.44,45.0]
[1724334924640,49.08,143.48,143.44,45.0]
[1724334925361,0.859104,143.49,143.44,45.0]
[1724334925766,0.859104,143.49,143.45,1.39406454]
[1724334925947,0.859104,143.49,143.44,45.0]
[1724334926148,6.9702,143.47,143.44,45.0]
[1724334926350,49.08,143.48,143.44,45.0]
[1724334927351,0.859104,143.49,143.44,45.0]
[1724334928161,0.859104,143.49,143.45,0.25098]
[1724334928364,0.859104,143.49,143.44,45.0]
[1724334929040,0.859104,143.49,143.45,0.25098]
[1724334930449,0.859104,143.49,143.46,6.1783]
[1724334930774,0.859104,143.49,143.47,45.12549]
[1724334933179,0.859104,143.49,143.48,0.12549]
[1724334933377,0.859104,143.49,143.47,45.12549]
[1724334933553,0.859104,143.49,143.47,45.0]
[1724334934176,0.859104,143.49,143.43,15.798]
[1724334935670,0.859104,143.49,143.44,45.25098]
[1724334942065,0.859104,143.49,143.45,20.0]
[1724334942266,0.859104,143.49,143.46,46.64473723]
[1724334945878,0.859104,143.49,143.46,45.25098]
[1724334946764,0.859104,143.49,143.45,20.0]
[1724334946970,0.859104,143.49,143.44,20.0]
[1724334947285,0.859104,143.49,143.39,21.9548]
[1724334947286,49.939104,143.49,143.39,21.9548]
[1724334948073,0.859104,143.49,143.4,49.08]
[1724334948403,0.859104,143.49,143.4,59.01111545]
[1724334948565,0.859104,143.49,143.41,45.25098]
[1724334948884,0.859104,143.49,143.42,20.0]
[1724334949069,0.859104,143.49,143.43,45.25098]
[1724334949452,0.859104,143.49,143.44,21.39395746]
[1724334949689,0.859104,143.49,143.45,45.25098]
[1724334949995,0.859104,143.49,143.46,21.39376251]
[1724334950290,0.859104,143.49,143.47,45.25098]
[1724334952490,0.859104,143.49,143.47,46.64474517]
[1724334953275,0.859104,143.49,143.47,45.25098]
[1724334954297,0.859104,143.49,143.47,45.0]
[1724334958789,5.28376388,143.48,143.47,45.0]
[1724334959363,5.28376388,143.48,143.47,46.39382464]
[1724334959564,5.28376388,143.48,143.47,46.51931464]
[1724334959759,5.28376388,143.48,143.47,45.12549]
[1724334959984,0.859104,143.49,143.47,66.6446026]
[1724334960264,0.859104,143.49,143.48,20.25098]
[1724334960464,0.859104,143.49,143.48,65.25098]
[1724334960691,6.14247873,143.49,143.48,45.0]
[1724334960991,0.859104,143.49,143.48,45.0]
[1724334961492,0.859104,143.49,143.42,15.3382]
[1724334961818,0.859104,143.49,143.43,20.12549]
[1724334962560,0.859104,143.49,143.44,0.12549]
[1724334962791,0.859104,143.49,143.43,20.12549]
[1724334962792,19.62,143.48,143.41,6.3872]
[1724334962963,0.859104,143.49,143.38,15.3264]
[1724334962964,19.62,143.46,143.38,15.3264]
[1724334963285,19.62,143.44,143.37,6.1398]
[1724334963493,19.62,143.44,143.35,19.62]
[1724334963698,23.0794,143.47,143.34,21.6135]
[1724334963699,19.62,143.42,143.34,21.6135]
[1724334963866,6.2383,143.45,143.34,21.6135]
[1724334964197,35.7293,143.47,143.37,19.62]
[1724334964576,16.1093,143.47,143.37,58.70869204]
[1724334965191,16.1093,143.47,143.38,20.12549]
[1724334965405,16.1093,143.47,143.39,0.12549]
[1724334965562,16.1093,143.47,143.39,45.12549]
[1724334965895,16.1093,143.47,143.4,0.12549]
[1724334967694,0.859104,143.49,143.41,49.06]
[1724334967874,5.28383927,143.48,143.42,46.64489282]
[1724334968073,5.28383927,143.47,143.42,45.25098]
[1724334968273,0.859104,143.49,143.42,45.25098]
[1724334968475,5.28347959,143.48,143.42,45.25098]
[1724334968674,0.859104,143.49,143.42,45.25098]
[1724334968979,5.28358017,143.48,143.42,45.25098]
[1724334969183,5.28358017,143.47,143.42,45.25098]
[1724334969493,0.859104,143.49,143.42,45.25098]
[1724334969693,5.28379757,143.48,143.43,20.0]
[1724334970001,5.28379757,143.47,143.44,45.25098]
[1724334970173,0.859104,143.49,143.44,45.25098]
[1724334970374,5.28390912,143.48,143.44,45.25098]
[1724334970702,5.28390912,143.47,143.44,45.25098]
[1724334970866,0.859104,143.49,143.44,0.12549]
[1724334971066,5.28397996,143.48,143.43,20.0]
[1724334971295,5.28397996,143.47,143.42,0.12549]
[1724334971492,5.28397996,143.46,143.42,0.25098]
[1724334971710,0.859104,143.49,143.42,0.25098]
[1724334971894,5.28400924,143.48,143.43,49.06]
[1724334972195,0.859104,143.49,143.44,65.25098]
[1724334972405,5.28316297,143.48,143.44,65.25098]
[1724334972703,0.859104,143.49,143.44,65.25098]
[1724334972994,5.28315722,143.48,143.45,1.39377079]
[1724334973172,0.859104,143.49,143.46,0.25098]
[1724334973700,5.28314921,143.48,143.46,0.25098]
[1724334973871,0.859104,143.49,143.45,0.25098]
[1724334974070,5.28314214,143.48,143.44,20.0]
[1724334974271,5.28314214,143.47,143.41,20.0]
[1724334974494,0.859104,143.49,143.41,20.0]
[1724334974698,5.28374227,143.48,143.41,20.0]
[1724334974891,5.28374227,143.47,143.41,20.0]
[1724334975074,0.859104,143.49,143.41,20.0]
[1724334975275,5.28374335,143.48,143.42,45.0]
[1724334975584,5.28357714,143.47,143.43,20.25098]